fUSD/lending_fUSD_20251001
["ID","MTS","AMOUNT","RATE_DAILY","PERIOD"]
[388639376,1759284647107,-549.42,0.00024657,2]
[388639377,1759284647116,-500.0,0.00024657,2]
[388639378,1759284647125,-500.0,0.00024657,2]
[388639379,1759284647134,-3291.46,0.00024657,2]
[388639380,1759284647143,-328.868233,0.00024657,2]
[388639381,1759284647152,-500.0,0.00024657,2]
[388639382,1759284647161,-500.0,0.00024657,2]
[388639383,1759284647170,-500.0,0.00024657,2]
[388639384,1759284647179,-999.0,0.00024657,2]
[388639385,1759284647188,-439.13503954,0.00024657,2]
[388639386,1759284647197,-999.0,0.00024657,2]
[388639387,1759284647206,-500.0,0.00024657,2]
[388639388,1759284647215,-2321.9,0.00024657,2]
[388639389,1759284647223,-999.0,0.00024657,2]
[388639390,1759284647233,-500.0,0.00024657,2]
[388639391,1759284647247,-500.0,0.00024657,2]
[388639392,1759284647256,-999.0,0.00024657,2]
[388639393,1759284647265,-999.0,0.00024657,2]
[388639394,1759284647275,-999.0,0.00024657,2]
[388639395,1759284647284,-500.0,0.00024657,2]
[388639396,1759284647293,-2871.26,0.00024657,2]
[388639397,1759284647302,-999.0,0.00024657,2]
[388639398,1759284647311,-999.0,0.00024657,2]
[388639399,1759284647320,-999.0,0.00024657,2]
[388639400,1759284647329,-999.0,0.00024657,2]
[388639401,1759284647339,-999.0,0.00024657,2]
[388639402,1759284647348,-999.0,0.00024657,2]
[388639403,1759284647357,-999.0,0.00024657,2]
[388639404,1759284647366,-500.0,0.00024657,2]
[388639405,1759284647376,-999.0,0.00024657,2]
[388639406,1759284647386,-999.0,0.00024657,2]
[388639407,1759284647395,-999.0,0.00024657,2]
[388639408,1759284647405,-999.0,0.00024657,2]
[388639409,1759284647414,-501.56343492,0.00024657,2]
[388639410,1759284647423,-999.0,0.00024657,2]
[388639411,1759284647432,-999.0,0.00024657,2]
[388639412,1759284647441,-500.0,0.00024657,2]
[388639413,1759284647451,-1019.0,0.00024657,2]
[388639414,1759284647460,-500.36176579,0.00024657,2]
[388639415,1759284647469,-500.0,0.00024657,2]
[388639416,1759284647478,-4466.1,0.00024657,2]
[388639417,1759284647488,-3452.26,0.00024657,2]
[388639418,1759284647498,-500.0,0.00024657,2]
[388639419,1759284647508,-500.0,0.00024657,2]
[388639420,1759284647518,-500.0,0.00024657,2]
[388639421,1759284647528,-2564.23,0.00024657,2]
[388639422,1759284647537,-500.0,0.00024657,2]
[388639423,1759284647546,-810.49,0.00024657,2]
[388639424,1759284647555,-500.0,0.00024657,2]
[388639425,1759284647566,-500.0,0.00024657,2]
[388639426,1759284647575,-500.0,0.00024657,2]
[388639427,1759284647585,-533.7899262,0.00024657,2]
[388639428,1759284647594,-3492.24,0.00024657,2]
[388639429,1759284647603,-4177.075954,0.00024657,2]
[388639430,1759284647613,-234.667673,0.00024657,7]
[388639431,1759284647622,-3299.91,0.00024657,2]
[388639432,1759284647633,-500.0,0.00024657,2]
[388639433,1759284647644,-500.0,0.00024657,2]
[388639434,1759284647653,-500.08,0.00024657,2]
[388639435,1759284647662,-500.0,0.00024657,2]
[388639436,1759284647671,-504.14657217,0.00024657,2]
[388639437,1759284647680,-500.0,0.00024657,2]
[388639438,1759284647689,-500.0,0.00024657,2]
[388639439,1759284647699,-706.12,0.00024657,2]
[388639440,1759284647709,-500.60649812,0.00024657,2]
[388639441,1759284647718,-500.0,0.00024657,2]
[388639442,1759284647727,-2557.23,0.00024657,2]
[388639443,1759284647736,-3460.39,0.00024657,2]
[388639444,1759284647745,-1000.0,0.00024657,2]
[388639445,1759284647755,-502.05219499,0.00024657,2]
[388639446,1759284647763,-1581.11,0.00024657,2]
[388639447,1759284647773,-1684.04,0.00024657,2]
[388639448,1759284647782,-2096.18,0.00024657,2]
[388639449,1759284647791,-599.66,0.00024657,2]
[388639450,1759284647800,-1832.71,0.00024657,2]
[388639451,1759284647810,-2511.42,0.00024657,2]
[388639452,1759284647819,-2513.79,0.00024657,2]
[388639453,1759284647828,-500.0,0.00024657,2]
[388639454,1759284647838,-500.0,0.00024657,2]
[388639455,1759284647847,-500.0,0.00024657,2]
[388639456,1759284647856,-500.0,0.00024657,2]
[388639457,1759284647865,-500.0,0.00024657,2]
[388639458,1759284647874,-676.96,0.00024657,2]
[388639459,1759284647883,-500.0,0.00024657,2]
[388639460,1759284647892,-500.0,0.00024657,2]
[388639461,1759284647901,-500.0,0.00024657,2]
[388639462,1759284647910,-500.0,0.00024657,2]
[388639463,1759284647920,-500.0,0.00024657,2]
[388639464,1759284647929,-500.0,0.00024657,2]
[388639465,1759284647938,-500.0,0.00024657,2]
[388639466,1759284647947,-233.84764532,0.00024657,2]
[388639467,1759284647956,-3620.56,0.00024657,2]
[388639468,1759284647965,-4014.47,0.00024657,2]
[388639469,1759284647974,-1096.92,0.00024657,2]
[388639470,1759284647983,-564.96,0.00024657,2]
[388639471,1759284647993,-500.0,0.00024657,2]
[388639472,1759284648003,-500.0,0.00024657,2]
[388639473,1759284648013,-498.91340476,0.00024657,2]
[388639474,1759284648022,-500.0,0.00024657,2]
[388639475,1759284648033,-3645.49,0.00024657,2]
[388639476,1759284648044,-500.0,0.00024657,2]
[388639477,1759284648056,-500.0,0.00024657,2]
[388639478,1759284648066,-500.0,0.00024657,2]
[388639479,1759284648076,-2310.13,0.00024657,2]
[388639480,1759284648086,-154.514722,0.00024657,7]
[388639481,1759284648098,-554.44,0.00024657,2]
[388639482,1759284648108,-500.0,0.00024657,2]
[388639483,1759284648117,-500.0,0.00024657,2]
[388639484,1759284648129,-3383.78,0.00024657,2]
[388639485,1759284648138,-500.0,0.00024657,2]
[388639486,1759284648148,-3801.89,0.00024657,2]
[388639487,1759284648158,-500.0,0.00024657,2]
[388639488,1759284648169,-3768.69,0.00024657,2]
[388639489,1759284648182,-500.0,0.00024657,2]
[388639490,1759284648192,-500.0,0.00024657,2]
[388639491,1759284648202,-500.0,0.00024657,2]
[388639492,1759284648211,-500.0,0.00024657,2]
[388639493,1759284648220,-2426.16,0.00024657,2]
[388639494,1759284648229,-2388.27,0.00024657,2]
[388639495,1759284648238,-500.0,0.00024657,2]
[388639496,1759284648247,-3914.74,0.00024657,2]
[388639497,1759284648257,-3817.1,0.00024657,2]
[388639498,1759284648267,-507.44495068,0.00024657,2]
[388639499,1759284648276,-3389.8,0.00024657,2]
[388639500,1759284648286,-811.36,0.00024657,2]
[388639501,1759284648295,-325.46316611,0.00024657,2]
[388639502,1759284648304,-500.0,0.00024657,2]
[388639503,1759284648314,-531.87,0.00024657,2]
[388639504,1759284648328,-500.0,0.00024657,2]
[388639505,1759284648344,-691.75,0.00024657,2]
[388639506,1759284648353,-500.0,0.00024657,2]
[388639507,1759284648363,-4851.43,0.00024657,2]
[388639508,1759284648372,-4681.51,0.00024657,2]
[388639509,1759284648382,-553.66,0.00024657,2]
[388639510,1759284648392,-1005.58,0.00024657,2]
[388639511,1759284648401,-159.693376,0.00024657,7]
[388639512,1759284648411,-553.66,0.00024657,2]
[388639513,1759284648421,-1927.67,0.00024657,2]
[388639514,1759284648430,-553.66,0.00024657,2]
[388639515,1759284648439,-553.66,0.00024657,2]
[388639516,1759284648449,-553.66,0.00024657,2]
[388639517,1759284648458,-553.66,0.00024657,2]
[388639518,1759284648468,-553.66,0.00024657,2]
[388639519,1759284648478,-553.66,0.00024657,2]
[388639520,1759284648487,-500.0,0.00024657,2]
[388639521,1759284648496,-500.0,0.00024657,2]
[388639522,1759284648506,-1275.05,0.00024657,2]
[388639523,1759284648515,-2239.94,0.00024657,2]
[388639524,1759284648525,-3262.33,0.00024657,2]
[388639525,1759284648536,-500.0,0.00024657,2]
[388639526,1759284648545,-500.0,0.00024657,2]
[388639527,1759284648554,-500.0,0.00024657,2]
[388639528,1759284648564,-500.0,0.00024657,2]
[388639529,1759284648573,-794.14,0.00024657,2]
[388639530,1759284648582,-500.0,0.00024657,2]
[388639531,1759284648592,-1715.87,0.00024657,2]
[388639532,1759284648601,-500.0,0.00024657,2]
[388639533,1759284648611,-2408.78,0.00024657,2]
[388639534,1759284648621,-500.0,0.00024657,2]
[388639535,1759284648630,-548.09,0.00024657,2]
[388639536,1759284648641,-500.0,0.00024657,2]
[388639537,1759284648651,-2559.89,0.00024657,2]
[388639538,1759284648660,-500.72746091,0.00024657,2]
[388639539,1759284648670,-500.0,0.00024657,2]
[388639540,1759284648679,-500.0,0.00024657,2]
[388639541,1759284648690,-500.0,0.00024657,2]
[388639542,1759284648702,-500.0,0.00024657,2]
[388639543,1759284648712,-2556.61,0.00024657,2]
[388639544,1759284648722,-500.0,0.00024657,2]
[388639545,1759284648731,-3604.52,0.00024657,2]
[388639546,1759284648741,-1246.75,0.00024657,2]
[388639547,1759284648751,-1155.69,0.00024657,2]
[388639548,1759284648760,-511.17,0.00024657,2]
[388639549,1759284648770,-1769.14,0.00024657,2]
[388639550,1759284648779,-3051.13,0.00024657,2]
[388639551,1759284648790,-1394.49,0.00024657,2]
[388639552,1759284648801,-1531.51,0.00024657,2]
[388639553,1759284648816,-500.0,0.00024657,2]
[388639554,1759284648826,-500.0,0.00024657,2]
[388639555,1759284648838,-500.0,0.00024657,2]
[388639556,1759284648847,-500.0,0.00024657,2]
[388639557,1759284648856,-500.0,0.00024657,2]
[388639558,1759284649132,-500.0,0.00024657,2]
[388639559,1759284649167,-500.0,0.00024657,2]
[388639560,1759284649177,-500.0,0.00024657,2]
[388639561,1759284649186,-3835.99,0.00024657,2]
[388639562,1759284649195,-500.0,0.00024657,2]
[388639563,1759284649204,-1369.67,0.00024657,2]
[388639564,1759284649214,-500.0,0.00024657,2]
[388639565,1759284649223,-500.0,0.00024657,2]
[388639566,1759284649233,-1886.66,0.00024657,2]
[388639567,1759284649242,-516.50045458,0.00024657,2]
[388639568,1759284649251,-500.0,0.00024657,2]
[388639569,1759284649261,-500.16804783,0.00024657,2]
[388639570,1759284649270,-6933.36,0.00024657,2]
[388639571,1759284649280,-500.0,0.00024657,2]
[388639572,1759284649290,-2293.76,0.00024657,2]
[388639573,1759284649299,-500.0,0.00024657,2]
[388639574,1759284649308,-695.18,0.00024657,2]
[388639575,1759284649318,-28235.76,0.00024657,2]
[388639576,1759284649328,-2982.33,0.00024657,2]
[388639577,1759284649338,-1494.86,0.00024657,2]
[388639578,1759284649347,-500.0,0.00024657,2]
[388639579,1759284649357,-500.0,0.00024657,2]
[388639580,1759284649367,-500.0,0.00024657,2]
[388639581,1759284649376,-2984.35,0.00024657,2]
[388639582,1759284649385,-2233.86,0.00024657,2]
[388639583,1759284649394,-1814.85,0.00024657,2]
[388639584,1759284649403,-708.44,0.00024657,2]
[388639585,1759284649412,-500.0,0.00024657,2]
[388639586,1759284649421,-500.0,0.00024657,2]
[388639587,1759284649430,-981.46,0.00024657,2]
[388639588,1759284649439,-4828.02,0.00024657,2]
[388639589,1759284649448,-500.0,0.00024657,2]
[388639590,1759284649458,-1108.21,0.00024657,2]
[388639591,1759284649467,-500.0,0.00024657,2]
[388639592,1759284649476,-500.0,0.00024657,2]
[388639593,1759284649484,-500.0,0.00024657,2]
[388639594,1759284649493,-457.79094931,0.00024657,2]
[388639595,1759284649502,-829.52,0.00024657,2]
[388639596,1759284649511,-1633.36,0.00024657,2]
[388639597,1759284649520,-500.0,0.00024657,2]
[388639598,1759284649528,-500.0,0.00024657,2]
[388639599,1759284649537,-5530.41,0.00024657,2]
[388639600,1759284649546,-852.87,0.00024657,2]
[388639601,1759284649555,-501.53355734,0.00024657,2]
[388639602,1759284649564,-3688.14,0.00024657,2]
[388639603,1759284649573,-1022.72,0.00024657,2]
[388639604,1759284649581,-500.0,0.00024657,2]
[388639605,1759284649591,-1706.82,0.00024657,2]
[388639606,1759284649599,-500.0,0.00024657,2]
[388639607,1759284649609,-3991.17,0.00024657,2]
[388639608,1759284649618,-500.0,0.00024657,2]
[388639609,1759284649628,-5565.19,0.00024657,2]
[388639610,1759284649638,-3849.22,0.00024657,2]
[388639611,1759284649648,-5022.5,0.00024657,2]
[388639612,1759284649658,-500.0,0.00024657,2]
[388639613,1759284649668,-2891.14,0.00024657,2]
[388639614,1759284649677,-500.0,0.00024657,2]
[388639615,1759284649687,-500.0,0.00024657,2]
[388639616,1759284649697,-6597.42,0.00024657,2]
[388639617,1759284649706,-500.0,0.00024657,2]
[388639618,1759284649715,-504.13030329,0.00024657,2]
[388639619,1759284649725,-500.0,0.00024657,2]
[388639620,1759284649734,-821.65,0.00024657,2]
[388639621,1759284649743,-505.67,0.00024657,2]
[388639622,1759284649753,-3605.92,0.00024657,2]
[388639623,1759284649762,-500.0,0.00024657,2]
[388639624,1759284649771,-2896.51,0.00024657,2]
[388639625,1759284649781,-500.0,0.00024657,2]
[388639626,1759284649790,-6469.8,0.00024657,2]
[388639627,1759284649799,-500.0,0.00024657,2]
[388639628,1759284649809,-1221.42,0.00024657,2]
[388639629,1759284649819,-544.7,0.00024657,2]
[388639630,1759284649828,-641.8,0.00024657,2]
[388639631,1759284649838,-4319.15,0.00024657,2]
[388639632,1759284649848,-293.43886554,0.00024657,2]
[388639633,1759284649857,-500.0,0.00024657,2]
[388639634,1759284649867,-500.0,0.00024657,2]
[388639635,1759284649877,-1454.77,0.00024657,2]
[388639636,1759284649887,-3092.07,0.00024657,2]
[388639637,1759284649897,-500.0,0.00024657,2]
[388639638,1759284649907,-1515.38,0.00024657,2]
[388639639,1759284649917,-6597.89,0.00024657,2]
[388639640,1759284649928,-3229.96,0.00024657,2]
[388639641,1759284649937,-2429.64,0.00024657,2]
[388639642,1759284649947,-500.0,0.00024657,2]
[388639643,1759284649957,-500.0,0.00024657,2]
[388639644,1759284649967,-2454.97,0.00024657,2]
[388639645,1759284649976,-526.26,0.00024657,2]
[388639646,1759284649987,-2550.38,0.00024657,2]
[388639647,1759284649997,-5935.54,0.00024657,2]
[388639648,1759284650007,-7162.53,0.00024657,2]
[388639649,1759284650016,-5304.45,0.00024657,2]
[388639650,1759284650026,-1584.12,0.00024657,2]
[388639651,1759284650035,-500.0,0.00024657,2]
[388639652,1759284650047,-500.0,0.00024657,2]
[388639653,1759284650058,-500.0,0.00024657,2]
[388639654,1759284650067,-580.51,0.00024657,2]
[388639655,1759284650076,-2779.31,0.00024657,2]
[388639656,1759284650087,-4296.95,0.00024657,2]
[388639657,1759284650101,-500.0,0.00024657,2]
[388639658,1759284650111,-2915.06,0.00024657,2]
[388639659,1759284650121,-4637.89,0.00024657,2]
[388639660,1759284650132,-500.0,0.00024657,2]
[388639661,1759284650142,-500.0,0.00024657,2]
[388639662,1759284650151,-500.0,0.00024657,2]
[388639663,1759284650160,-500.0,0.00024657,2]
[388639664,1759284650169,-963.72,0.00024657,2]
[388639665,1759284650179,-500.0,0.00024657,2]
[388639666,1759284650188,-500.0,0.00024657,2]
[388639667,1759284650198,-518.7,0.00024657,2]
[388639668,1759284650207,-500.0,0.00024657,2]
[388639669,1759284650217,-3233.67,0.00024657,2]
[388639670,1759284650227,-500.0,0.00024657,2]
[388639671,1759284650240,-500.0,0.00024657,2]
[388639672,1759284650250,-1023.62,0.00024657,2]
[388639673,1759284650260,-500.0,0.00024657,2]
[388639674,1759284650270,-500.0,0.00024657,2]
[388639675,1759284650279,-4051.48,0.00024657,2]
[388639676,1759284650287,-500.0,0.00024657,2]
[388639677,1759284650296,-3364.39,0.00024657,2]
[388639678,1759284650306,-4275.72,0.00024657,2]
[388639679,1759284650315,-288.98708,0.00024657,2]
[388639680,1759284650324,-500.0,0.00024657,2]
[388639681,1759284650333,-500.0,0.00024657,2]
[388639682,1759284650342,-658.64,0.00024657,2]
[388639683,1759284650351,-500.0,0.00024657,2]
[388639684,1759284650360,-1927.01,0.00024657,2]
[388639685,1759284650370,-733.3,0.00024657,2]
[388639686,1759284650379,-1235.87,0.00024657,2]
[388639687,1759284650389,-1191.02,0.00024657,2]
[388639688,1759284650399,-500.0,0.00024657,2]
[388639689,1759284650410,-500.0,0.00024657,2]
[388639690,1759284650419,-500.0,0.00024657,2]
[388639691,1759284650429,-3110.92,0.00024657,2]
[388639692,1759284650439,-3270.71,0.00024657,2]
[388639693,1759284650450,-3568.17,0.00024657,2]
[388639694,1759284650460,-4434.6,0.00024657,2]
[388639695,1759284650469,-964.13,0.00024657,2]
[388639696,1759284650479,-3555.08,0.00024657,2]
[388639697,1759284650489,-13563.03,0.00024657,2]
[388639698,1759284650502,-500.0,0.00024657,2]
[388639699,1759284650511,-2073.61,0.00024657,2]
[388639700,1759284650520,-500.0,0.00024657,2]
[388639701,1759284650529,-17724.69,0.00024657,2]
[388639702,1759284650538,-500.0,0.00024657,2]
[388639703,1759284650547,-1910.47,0.00024657,2]
[388639704,1759284650557,-500.0,0.00024657,2]
[388639705,1759284650566,-709.93,0.00024657,2]
[388639706,1759284650576,-500.0,0.00024657,2]
[388639707,1759284650587,-7621.31,0.00024657,2]
[388639708,1759284650597,-500.0,0.00024657,2]
[388639709,1759284650606,-500.0,0.00024657,2]
[388639710,1759284650616,-8377.16,0.00024657,2]
[388639711,1759284650625,-500.0,0.00024657,2]
[388639712,1759284650635,-500.0,0.00024657,2]
[388639713,1759284650644,-3031.65,0.00024657,2]
[388639714,1759284650654,-500.0,0.00024657,2]
[388639715,1759284650663,-500.0,0.00024657,2]
[388639716,1759284650673,-3036.49,0.00024657,2]
[388639717,1759284650682,-495.51437958,0.00024657,2]
[388639718,1759284650692,-500.0,0.00024657,2]
[388639719,1759284650701,-500.0,0.00024657,2]
[388639720,1759284650710,-2252.79,0.00024657,2]
[388639721,1759284650719,-500.0,0.00024657,2]
[388639722,1759284650728,-500.0,0.00024657,2]
[388639723,1759284650739,-2820.2,0.00024657,2]
[388639724,1759284650748,-500.0,0.00024657,2]
[388639725,1759284650757,-1577.39,0.00024657,2]
[388639726,1759284650767,-3875.73,0.00024657,2]
[388639727,1759284650776,-500.0,0.00024657,2]
[388639728,1759284650786,-778.45,0.00024657,2]
[388639729,1759284650795,-1955.57,0.00024657,2]
[388639730,1759284650805,-500.0,0.00024657,2]
[388639731,1759284650814,-3122.41,0.00024657,2]
[388639732,1759284650824,-637.26675838,0.00024657,2]
[388639733,1759284650833,-500.0,0.00024657,2]
[388639734,1759284650843,-500.0,0.00024657,2]
[388639735,1759284650852,-213.006075,0.00024657,7]
[388639736,1759284650862,-698.18,0.00024657,2]
[388639737,1759284650872,-1371.86,0.00024657,2]
[388639738,1759284650880,-597.58,0.00024657,2]
[388639739,1759284650890,-500.0,0.00024657,2]
[388639740,1759284650899,-564.0,0.00024657,2]
[388639741,1759284650908,-500.0,0.00024657,2]
[388639742,1759284650918,-500.0,0.00024657,2]
[388639743,1759284650927,-3711.73,0.00024657,2]
[388639744,1759284650936,-500.0,0.00024657,2]
[388639745,1759284650946,-500.0,0.00024657,2]
[388639746,1759284650955,-500.0,0.00024657,2]
[388639747,1759284650964,-3125.21,0.00024657,2]
[388639748,1759284650975,-1267.31,0.00024657,2]
[388639749,1759284650984,-4154.25,0.00024657,2]
[388639750,1759284650994,-3338.21,0.00024657,2]
[388639751,1759284651003,-500.0,0.00024657,2]
[388639752,1759284651012,-500.0,0.00024657,2]
[388639753,1759284651021,-2941.91,0.00024657,2]
[388639754,1759284651030,-300.0,0.00024657,2]
[388639755,1759284651039,-1881.94,0.00024657,2]
[388639756,1759284651049,-1343.25,0.00024657,2]
[388639757,1759284651063,-1396.83,0.00024657,2]
[388639758,1759284651072,-500.0,0.00024657,2]
[388639759,1759284651082,-2070.0,0.00024657,2]
[388639760,1759284651092,-1177.84,0.00024657,2]
[388639761,1759284651101,-696.68,0.00024657,2]
[388639762,1759284651111,-500.0,0.00024657,2]
[388639763,1759284651120,-4607.36,0.00024657,2]
[388639764,1759284651130,-500.0,0.00024657,2]
[388639765,1759284651139,-1137.18,0.00024657,2]
[388639766,1759284651149,-765.04,0.00024657,2]
[388639767,1759284651158,-971.34,0.00024657,2]
[388639768,1759284651167,-6819.35,0.00024657,2]
[388639769,1759284651177,-19720.89,0.00024657,2]
[388639770,1759284651186,-4052.73,0.00024657,2]
[388639771,1759284651195,-500.0,0.00024657,2]
[388639772,1759284651205,-531.16,0.00024657,2]
[388639773,1759284651214,-3837.46,0.00024657,2]
[388639774,1759284651224,-4575.62,0.00024657,2]
[388639775,1759284651233,-500.0,0.00024657,2]
[388639776,1759284651243,-2957.76,0.00024657,2]
[388639777,1759284651252,-500.0,0.00024657,2]
[388639778,1759284651262,-500.0,0.00024657,2]
[388639779,1759284651271,-3435.62,0.00024657,2]
[388639780,1759284651280,-866.15,0.00024657,2]
[388639781,1759284651290,-500.0,0.00024657,2]
[388639782,1759284651300,-538.61,0.00024657,2]
[388639783,1759284651311,-500.0,0.00024657,2]
[388639784,1759284651321,-3157.44,0.00024657,2]
[388639785,1759284651331,-1548.89,0.00024657,2]
[388639786,1759284651341,-4857.46,0.00024657,2]
[388639787,1759284651351,-500.0,0.00024657,2]
[388639788,1759284651360,-560.16,0.00024657,2]
[388639789,1759284651369,-918.38,0.00024657,2]
[388639790,1759284651378,-500.0,0.00024657,2]
[388639791,1759284651388,-923.99,0.00024657,2]
[388639792,1759284651399,-500.0,0.00024657,2]
[388639793,1759284651409,-4048.47,0.00024657,2]
[388639794,1759284651418,-500.0,0.00024657,2]
[388639795,1759284651427,-34834.98,0.00024657,2]
[388639796,1759284651437,-500.0,0.00024657,2]
[388639797,1759284651447,-1084.2,0.00024657,2]
[388639798,1759284651563,-500.0,0.00024657,2]
[388639799,1759284651573,-5204.27,0.00024657,2]
[388639800,1759284651583,-4155.5,0.00024657,2]
[388639801,1759284651592,-6709.93,0.00024657,2]
[388639802,1759284651602,-500.0,0.00024657,2]
[388639803,1759284651614,-500.0,0.00024657,2]
[388639804,1759284651623,-4034.49,0.00024657,2]
[388639805,1759284651632,-607.9,0.00024657,2]
[388639806,1759284651642,-4659.82,0.00024657,2]
[388639807,1759284651651,-500.0,0.00024657,2]
[388639808,1759284651660,-2918.86,0.00024657,2]
[388639809,1759284651669,-779.13968964,0.00024657,2]
[388639810,1759284652310,-4286.52031036,0.00024657,2]
[388639811,1759284652320,-2827.92,0.00024657,2]
[388639812,1759284652329,-1007.31,0.00024657,2]
[388639813,1759284652339,-500.0,0.00024657,2]
[388639814,1759284652349,-4299.89,0.00024657,2]
[388639815,1759284652358,-500.0,0.00024657,2]
[388639816,1759284652367,-500.0,0.00024657,2]
[388639817,1759284652376,-500.0,0.00024657,2]
[388639818,1759284652386,-5405.5,0.00024657,2]
[388639819,1759284652395,-500.0,0.00024657,2]
[388639820,1759284652404,-4715.43,0.00024657,2]
[388639821,1759284652414,-500.0,0.00024657,2]
[388639822,1759284652423,-175.32915219,0.00024657,2]
[388639823,1759284652433,-7287.35,0.00024657,2]
[388639824,1759284652442,-3305.41,0.00024657,2]
[388639825,1759284652451,-220.95447285,0.00024657,2]
[388639826,1759284652461,-500.0,0.00024657,2]
[388639827,1759284652471,-500.0,0.00024657,2]
[388639828,1759284652480,-500.0,0.00024657,2]
[388639829,1759284652489,-4826.69,0.00024657,2]
[388639830,1759284652498,-8062.95,0.00024657,2]
[388639831,1759284652507,-500.0,0.00024657,2]
[388639832,1759284652516,-500.0,0.00024657,2]
[388639833,1759284652525,-500.0,0.00024657,2]
[388639834,1759284652535,-500.0,0.00024657,2]
[388639835,1759284652544,-1220.64,0.00024657,2]
[388639836,1759284652553,-500.0,0.00024657,2]
[388639837,1759284652562,-501.03257554,0.00024657,2]
[388639838,1759284652571,-500.36142569,0.00024657,2]
[388639839,1759284652581,-2697.94,0.00024657,2]
[388639840,1759284652590,-500.0,0.00024657,2]
[388639841,1759284652599,-500.0,0.00024657,2]
[388639842,1759284652609,-3008.09,0.00024657,2]
[388639843,1759284652618,-501.29674362,0.00024657,2]
[388639844,1759284652627,-500.0,0.00024657,2]
[388639845,1759284652637,-500.0,0.00024657,2]
[388639846,1759284652646,-500.0,0.00024657,2]
[388639847,1759284652655,-500.78185205,0.00024657,2]
[388639848,1759284652664,-388.62453244,0.00024657,2]
[388639849,1759284652673,-3719.37,0.00024657,2]
[388639850,1759284652683,-19053.68,0.00024657,2]
[388639851,1759284652692,-2455.49,0.00024657,2]
[388639852,1759284652701,-500.0,0.00024657,2]
[388639853,1759284652711,-1646.3,0.00024657,2]
[388639854,1759284652720,-1646.3,0.00024657,2]
[388639855,1759284652729,-1609.42,0.00024657,2]
[388639856,1759284652738,-1646.3,0.00024657,2]
[388639857,1759284652747,-1646.3,0.00024657,2]
[388639858,1759284652757,-3619.03,0.00024657,2]
[388639859,1759284652766,-1646.3,0.00024657,2]
[388639860,1759284652775,-1646.3,0.00024657,2]
[388639861,1759284652785,-5732.87,0.00024657,2]
[388639862,1759284652795,-1646.3,0.00024657,2]
[388639863,1759284652804,-1646.3,0.00024657,2]
[388639864,1759284652813,-1646.3,0.00024657,2]
[388639865,1759284652822,-1646.3,0.00024657,2]
[388639866,1759284652831,-1639.96,0.00024657,2]
[388639867,1759284652841,-1646.3,0.00024657,2]
[388639868,1759284652851,-4359.6,0.00024657,2]
[388639869,1759284652860,-1646.3,0.00024657,2]
[388639870,1759284652869,-737.26,0.00024657,2]
[388639871,1759284652879,-1646.3,0.00024657,2]
[388639872,1759284652888,-500.0,0.00024657,2]
[388639873,1759284652898,-950.95,0.00024657,2]
[388639874,1759284652908,-3896.95,0.00024657,2]
[388639875,1759284652917,-500.0,0.00024657,2]